fUST/lending_fUST_20251203
["ID","MTS","AMOUNT","RATE_DAILY","PERIOD"]
[395525642,1764700258539,-500.0,0.00013972,2]
[395525644,1764700258548,-966.59,0.00013972,2]
[395525646,1764700258557,-500.0,0.00013972,2]
[395525648,1764700258566,-1668.64,0.00013972,2]
[395525650,1764700258575,-500.0,0.00013972,2]
[395525652,1764700258584,-500.0,0.00013972,2]
[395525654,1764700258593,-500.0,0.00013972,2]
[395525656,1764700258603,-500.0,0.00013972,2]
[395525658,1764700258612,-616.11,0.00013972,2]
[395525660,1764700258622,-500.0,0.00013972,2]
[395525662,1764700258631,-500.0,0.00013972,2]
[395525664,1764700258640,-500.0,0.00013972,2]
[395525666,1764700258649,-500.0,0.00013972,2]
[395525668,1764700258661,-500.0,0.00013972,2]
[395525670,1764700258670,-500.0,0.00013972,2]
[395525672,1764700258679,-582.84,0.00013972,2]
[395525674,1764700258689,-500.0,0.00013972,2]
[395525676,1764700258699,-493.56717973,0.00013972,2]
[395525678,1764700258708,-1831.7,0.00013972,2]
[395525680,1764700258718,-500.0,0.00013972,2]
[395525682,1764700258727,-1002.62,0.00013972,2]
[395525684,1764700258736,-500.0,0.00013972,2]
[395525686,1764700258746,-508.59237365,0.00013972,2]
[395525688,1764700258756,-1375.89,0.00013972,2]
[395525690,1764700258765,-500.0,0.00013972,2]
[395525692,1764700258775,-510.17,0.00013972,2]
[395525694,1764700258784,-500.0,0.00013972,2]
[395525696,1764700258793,-500.0,0.00013972,2]
[395525698,1764700258803,-1425.0,0.00013972,2]
[395525700,1764700258812,-504.92284403,0.00013972,2]
[395525702,1764700258821,-645.65,0.00013972,2]
[395525704,1764700258830,-625.42,0.00013972,2]
[395525706,1764700258839,-988.15,0.00013972,2]
[395525707,1764700258848,-500.0,0.00013972,2]
[395525709,1764700258858,-566.53,0.00013972,2]
[395525711,1764700258868,-500.0,0.00013972,2]
[395525713,1764700258877,-500.0,0.00013972,2]
[395525715,1764700258887,-500.0,0.00013972,2]
[395525717,1764700258896,-500.0,0.00013972,2]
[395525719,1764700258906,-500.0,0.00013972,2]
[395525721,1764700258915,-993.17,0.00013972,2]
[395525723,1764700258925,-500.0,0.00013972,2]
[395525725,1764700258934,-500.0,0.00013972,2]
[395525727,1764700258944,-500.0,0.00013972,2]
[395525729,1764700258956,-500.0,0.00013972,2]
[395525731,1764700258966,-500.0,0.00013972,2]
[395525733,1764700258976,-721.42,0.00013972,2]
[395525735,1764700258985,-1322.83,0.00013972,2]
[395525737,1764700258995,-782.52,0.00013972,2]
[395525739,1764700259004,-500.0,0.00013972,2]
[395525740,1764700259013,-500.0,0.00013972,2]
[395525742,1764700259022,-500.0,0.00013972,2]
[395525744,1764700259031,-772.11,0.00013972,2]
[395525746,1764700259040,-500.0,0.00013972,2]
[395525748,1764700259050,-616.53,0.00013972,2]
[395525750,1764700259059,-1121.31,0.00013972,2]
[395525752,1764700259068,-500.0,0.00013972,2]
[395525754,1764700259077,-500.0,0.00013972,2]
[395525756,1764700259087,-500.0,0.00013972,2]
[395525758,1764700259097,-1436.21,0.00013972,2]
[395525760,1764700259107,-638.45,0.00013972,2]
[395525762,1764700259119,-500.0,0.00013972,2]
[395525763,1764700259133,-500.0,0.00013972,2]
[395525765,1764700259143,-500.0,0.00013972,2]
[395525767,1764700259153,-500.0,0.00013972,2]
[395525769,1764700259164,-500.0,0.00013972,2]
[395525771,1764700259174,-500.0,0.00013972,2]
[395525773,1764700259184,-573.67,0.00013972,2]
[395525775,1764700259195,-1022.84,0.00013972,2]
[395525777,1764700259206,-880.72,0.00013972,2]
[395525779,1764700259216,-500.0,0.00013972,2]
[395525781,1764700259225,-500.0,0.00013972,2]
[395525783,1764700259234,-1113.83,0.00013972,2]
[395525785,1764700259243,-1158.18,0.00013972,2]
[395525787,1764700259252,-500.0,0.00013972,2]
[395525788,1764700259263,-901.12,0.00013972,2]
[395525790,1764700259272,-563.34,0.00013972,2]
[395525792,1764700259282,-500.0,0.00013972,2]
[395525794,1764700259291,-500.0,0.00013972,2]
[395525796,1764700259300,-500.0,0.00013972,2]
[395525798,1764700259310,-946.95,0.00013972,2]
[395525800,1764700259319,-523.1,0.00013972,2]
[395525802,1764700259329,-500.0,0.00013972,2]
[395525804,1764700259341,-500.0,0.00013972,2]
[395525806,1764700259350,-500.0,0.00013972,2]
[395525808,1764700259360,-684.46,0.00013972,2]
[395525810,1764700259370,-500.0,0.00013972,2]
[395525812,1764700259379,-500.0,0.00013972,2]
[395525814,1764700259390,-930.17,0.00013972,2]
[395525816,1764700259399,-500.0,0.00013972,2]
[395525818,1764700259409,-500.0,0.00013972,2]
[395525820,1764700259418,-500.0,0.00013972,2]
[395525821,1764700259428,-500.0,0.00013972,2]
[395525823,1764700259438,-500.0,0.00013972,2]
[395525825,1764700259449,-500.0,0.00013972,2]
[395525827,1764700259458,-1234.72,0.00013972,2]
[395525829,1764700259467,-998.08,0.00013972,2]
[395525831,1764700259477,-500.0,0.00013972,2]
[395525833,1764700259486,-1048.81,0.00013972,2]
[395525835,1764700259495,-500.0,0.00013972,2]
[395525837,1764700259504,-500.0,0.00013972,2]
[395525839,1764700259514,-500.0,0.00013972,2]
[395525841,1764700259523,-545.7388227,0.00013972,2]
[395525843,1764700259532,-500.0,0.00013972,2]
[395525845,1764700259541,-500.0,0.00013972,2]
[395525847,1764700259550,-500.0,0.00013972,2]
[395525849,1764700259559,-500.0,0.00013972,2]
[395525851,1764700259569,-665.63,0.00013972,2]
[395525853,1764700259578,-500.0,0.00013972,2]
[395525854,1764700259587,-841.24,0.00013972,2]
[395525856,1764700259596,-1376.14,0.00013972,2]
[395525858,1764700259606,-500.0,0.00013972,2]
[395525860,1764700259615,-500.0,0.00013972,2]
[395525862,1764700259624,-500.0,0.00013972,2]
[395525864,1764700259633,-500.0,0.00013972,2]
[395525866,1764700259642,-1310.97,0.00013972,2]
[395525868,1764700259651,-500.0,0.00013972,2]
[395525870,1764700259660,-500.0,0.00013972,2]
[395525872,1764700259669,-500.0,0.00013972,2]
[395525874,1764700259678,-954.75,0.00013972,2]
[395525876,1764700259688,-500.0,0.00013972,2]
[395525878,1764700259699,-500.0,0.00013972,2]
[395525880,1764700259708,-500.0,0.00013972,2]
[395525882,1764700259717,-500.0,0.00013972,2]
[395525883,1764700259726,-500.0,0.00013972,2]
[395525885,1764700259736,-500.0,0.00013972,2]
[395525887,1764700259745,-1672.25,0.00013972,2]
[395525889,1764700259754,-500.0,0.00013972,2]
[395525891,1764700259764,-646.78,0.00013972,2]
[395525893,1764700259773,-500.0,0.00013972,2]
[395525895,1764700259783,-151.98081223,0.00013972,2]
[395525897,1764700259792,-500.0,0.00013972,2]
[395525899,1764700259801,-503.56294381,0.00013972,2]
[395525901,1764700259810,-500.0,0.00013972,2]
[395525903,1764700259819,-549.78,0.00013972,2]
[395525905,1764700259828,-635.02,0.00013972,2]
[395525907,1764700259838,-553.36993344,0.00013972,2]
[395525909,1764700259847,-666.2,0.00013972,2]
[395525911,1764700259856,-2392.84,0.00013972,2]
[395525913,1764700259866,-500.0,0.00013972,2]
[395525915,1764700259875,-4019.58,0.00013972,2]
[395525917,1764700259885,-834.95,0.00013972,2]
[395525919,1764700259894,-500.0,0.00013972,2]
[395525921,1764700259904,-500.0,0.00013972,2]
[395525923,1764700259913,-1131.23,0.00013972,2]
[395525925,1764700259923,-500.0,0.00013972,2]
[395525926,1764700259932,-500.0,0.00013972,2]
[395525928,1764700259944,-590.03,0.00013972,2]
[395525930,1764700259953,-500.0,0.00013972,2]
[395525932,1764700259963,-679.74,0.00013972,2]
[395525934,1764700259972,-1261.89,0.00013972,2]
[395525936,1764700259982,-1502.27,0.00013972,2]
[395525938,1764700259991,-1176.24,0.00013972,2]
[395525940,1764700260000,-708.34,0.00013972,2]
[395525942,1764700260009,-500.0,0.00013972,2]
[395525944,1764700260018,-500.0,0.00013972,2]
[395525946,1764700260027,-3534.78,0.00013972,2]
[395525948,1764700260036,-1590.78,0.00013972,2]
[395525950,1764700260046,-1468.43,0.00013972,2]
[395525952,1764700260059,-500.0,0.00013972,2]
[395525954,1764700260069,-500.0,0.00013972,2]
[395525956,1764700260079,-519.03116686,0.00013972,2]
[395525958,1764700260089,-1529.68,0.00013972,2]
[395525959,1764700260098,-500.0,0.00013972,2]
[395525961,1764700260108,-508.06195003,0.00013972,2]
[395525963,1764700260118,-1389.1,0.00013972,2]
[395525965,1764700260132,-500.0,0.00013972,2]
[395525967,1764700260141,-1486.77,0.00013972,2]
[395525969,1764700260151,-713.64,0.00013972,2]
[395525971,1764700260160,-500.0,0.00013972,2]
[395525973,1764700260170,-2062.66,0.00013972,2]
[395525975,1764700260180,-2029.83,0.00013972,2]
[395525977,1764700260189,-500.0,0.00013972,2]
[395525979,1764700260201,-500.0,0.00013972,2]
[395525981,1764700260210,-500.0,0.00013972,2]
[395525983,1764700260220,-1207.71,0.00013972,2]
[395525985,1764700260230,-500.0,0.00013972,2]
[395525987,1764700260239,-750.49,0.00013972,2]
[395525989,1764700260249,-913.85,0.00013972,2]
[395525991,1764700260258,-500.0,0.00013972,2]
[395525993,1764700260267,-500.0,0.00013972,2]
[395525995,1764700260277,-709.72,0.00013972,2]
[395525997,1764700260289,-520.63,0.00013972,2]
[395525999,1764700260299,-500.0,0.00013972,2]
[395526000,1764700260308,-3520.43,0.00013972,2]
[395526002,1764700260317,-500.0,0.00013972,2]
[395526004,1764700260326,-500.0,0.00013972,2]
[395526006,1764700260335,-500.0,0.00013972,2]
[395526008,1764700260344,-1047.77,0.00013972,2]
[395526010,1764700260353,-4898.68,0.00013972,2]
[395526012,1764700260362,-673.82,0.00013972,2]
[395526014,1764700260371,-500.0,0.00013972,2]
[395526016,1764700260380,-500.0,0.00013972,2]
[395526017,1764700260389,-500.0,0.00013972,2]
[395526019,1764700260399,-500.0,0.00013972,2]
[395526021,1764700260408,-801.02,0.00013972,2]
[395526023,1764700260418,-500.0,0.00013972,2]
[395526025,1764700260427,-500.0,0.00013972,2]
[395526027,1764700260436,-500.0,0.00013972,2]
[395526029,1764700260446,-724.17,0.00013972,2]
[395526031,1764700260455,-500.0,0.00013972,2]
[395526033,1764700260465,-500.0,0.00013972,2]
[395526035,1764700260474,-500.0,0.00013972,2]
[395526037,1764700260483,-583.23,0.00013972,2]
[395526039,1764700260492,-500.0,0.00013972,2]
[395526041,1764700260501,-500.0,0.00013972,2]
[395526043,1764700260510,-1171.68,0.00013972,2]
[395526044,1764700260519,-500.0,0.00013972,2]
[395526046,1764700260528,-500.0,0.00013972,2]
[395526048,1764700260537,-501.56173402,0.00013972,2]
[395526049,1764700260546,-500.0,0.00013972,2]
[395526050,1764700260555,-881.41,0.00013972,2]
[395526051,1764700260564,-500.0,0.00013972,2]
[395526052,1764700260574,-1267.99,0.00013972,2]
[395526053,1764700260583,-1142.87,0.00013972,2]
[395526054,1764700260592,-500.0,0.00013972,2]
[395526055,1764700260602,-1457.82,0.00013972,2]
[395526056,1764700260612,-915.82,0.00013972,2]
[395526057,1764700260622,-500.0,0.00013972,2]
[395526058,1764700260632,-500.0,0.00013972,2]
[395526059,1764700260641,-500.0,0.00013972,2]
[395526060,1764700260651,-500.0,0.00013972,2]
[395526061,1764700260660,-493.68457911,0.00013972,2]
[395526062,1764700260670,-500.0,0.00013972,2]
[395526063,1764700260679,-215.51151259,0.00013972,2]
[395526064,1764700260691,-500.0,0.00013972,2]
[395526065,1764700260700,-746.12201733,0.00013972,2]
[395526099,1764700261184,-1915.41798267,0.00013972,2]
[395526101,1764700261195,-500.0,0.00013972,2]
[395526103,1764700261205,-500.0,0.00013972,2]
[395526105,1764700261215,-506.28338921,0.00013972,2]
[395526107,1764700261223,-1935.63,0.00013972,2]
[395526109,1764700261233,-1134.19,0.00013972,2]
[395526111,1764700261243,-899.26,0.00013972,2]
[395526113,1764700261253,-500.0,0.00013972,2]
[395526115,1764700261262,-959.04,0.00013972,2]
[395526117,1764700261271,-500.0,0.00013972,2]
[395526119,1764700261280,-1017.99,0.00013972,2]
[395526121,1764700261290,-500.0,0.00013972,2]
[395526123,1764700261299,-500.0,0.00013972,2]
[395526125,1764700261308,-706.02,0.00013972,2]
[395526127,1764700261316,-327.9325029,0.00013972,2]
[395526129,1764700261326,-388.97299934,0.00013972,2]
[395526135,1764700261374,-441.315,0.00013972,2]
[395526137,1764700261385,-323.15200066,0.00013972,2]
[395526139,1764700261395,-500.0,0.00013972,2]
[395526141,1764700261404,-500.0,0.00013972,2]
[395526143,1764700261413,-500.0,0.00013972,2]
[395526145,1764700261422,-2278.79,0.00013972,2]
[395526147,1764700261431,-1463.33,0.00013972,2]
[395526149,1764700261440,-975.51,0.00013972,2]
[395526151,1764700261451,-3510.59,0.00013972,2]
[395526153,1764700261459,-500.0,0.00013972,2]
[395526155,1764700261468,-500.0,0.00013972,2]
[395526157,1764700261477,-1318.57,0.00013972,2]
[395526159,1764700261486,-658.21,0.00013972,2]
[395526161,1764700261495,-724.89,0.00013972,2]
[395526163,1764700261504,-502.34997272,0.00013972,2]
[395526165,1764700261513,-500.0,0.00013972,2]
[395526167,1764700261522,-500.0,0.00013972,2]
[395526169,1764700261532,-1604.84,0.00013972,2]
[395526171,1764700261541,-504.5218291,0.00013972,2]
[395526173,1764700261550,-500.0,0.00013972,2]
[395526175,1764700261559,-2443.05,0.00013972,2]
[395526177,1764700261568,-1692.26,0.00013972,2]
[395526179,1764700261578,-500.0,0.00013972,2]
[395526181,1764700261587,-800.7,0.00013972,2]
[395526183,1764700261596,-6638.44,0.00013972,2]
[395526185,1764700261605,-693.36,0.00013972,2]
[395526187,1764700261614,-1081.66,0.00013972,2]
[395526189,1764700261623,-1134.95,0.00013972,2]
[395526191,1764700261632,-1470.65,0.00013972,2]
[395526193,1764700261642,-500.0,0.00013972,2]
[395526195,1764700261652,-500.0,0.00013972,2]
[395526197,1764700261662,-709.13,0.00013972,2]
[395526199,1764700261671,-659.35,0.00013972,2]
[395526201,1764700261680,-500.0,0.00013972,2]
[395526203,1764700261688,-500.0,0.00013972,2]
[395526205,1764700261699,-500.0,0.00013972,2]
[395526207,1764700261708,-1437.01,0.00013972,2]
[395526209,1764700261717,-2076.76,0.00013972,2]
[395526211,1764700261727,-500.0,0.00013972,2]
[395526213,1764700261736,-500.0,0.00013972,2]
[395526215,1764700261745,-5782.36,0.00013972,2]
[395526217,1764700261754,-1358.8,0.00013972,2]
[395526219,1764700261763,-692.47,0.00013972,2]
[395526221,1764700261772,-802.64,0.00013972,2]
[395526223,1764700261782,-810.54,0.00013972,2]
[395526225,1764700261791,-500.0,0.00013972,2]
[395526227,1764700261800,-975.44,0.00013972,2]
[395526229,1764700261810,-500.0,0.00013972,2]
[395526231,1764700261819,-917.05,0.00013972,2]
[395526233,1764700261828,-500.0,0.00013972,2]
[395526235,1764700261837,-503.15852126,0.00013972,2]
[395526237,1764700261846,-500.0,0.00013972,2]
[395526239,1764700261855,-1542.69,0.00013972,2]
[395526241,1764700261865,-1337.53,0.00013972,2]
[395526243,1764700261874,-744.29,0.00013972,2]
[395526245,1764700261884,-1929.03,0.00013972,2]
[395526247,1764700261893,-811.34,0.00013972,2]
[395526249,1764700261902,-500.0,0.00013972,2]
[395526250,1764700261911,-500.0,0.00013972,2]
[395526253,1764700261921,-501.29728258,0.00013972,2]
[395526255,1764700261930,-567.04,0.00013972,2]
[395526256,1764700261939,-989.76,0.00013972,2]
[395526258,1764700261949,-7095.35,0.00013972,2]
[395526260,1764700261958,-500.0,0.00013972,2]
[395526262,1764700261967,-1182.79,0.00013972,2]
[395526264,1764700261976,-1204.25,0.00013972,2]
[395526266,1764700261986,-912.9,0.00013972,2]
[395526268,1764700261995,-500.0,0.00013972,2]
[395526270,1764700262005,-1091.06,0.00013972,2]
[395526272,1764700262013,-918.29,0.00013972,2]
[395526274,1764700262022,-500.0,0.00013972,2]
[395526276,1764700262031,-500.0,0.00013972,2]
[395526278,1764700262040,-835.94,0.00013972,2]
[395526280,1764700262050,-500.0,0.00013972,2]
[395526282,1764700262059,-619.94,0.00013972,2]
[395526284,1764700262068,-500.0,0.00013972,2]
[395526286,1764700262077,-780.65,0.00013972,2]
[395526288,1764700262086,-500.0,0.00013972,2]
[395526290,1764700262096,-500.0,0.00013972,2]
[395526292,1764700262105,-501.14750474,0.00013972,2]
[395526294,1764700262115,-500.0,0.00013972,2]
[395526296,1764700262131,-1453.53,0.00013972,2]
[395526298,1764700262141,-500.0,0.00013972,2]
[395526300,1764700262150,-654.87,0.00013972,2]
[395526302,1764700262159,-500.0,0.00013972,2]
[395526304,1764700262173,-2130.53,0.00013972,2]
[395526306,1764700262182,-4391.85,0.00013972,2]
[395526308,1764700262192,-3348.12,0.00013972,2]
[395526310,1764700262210,-500.0,0.00013972,2]
[395526312,1764700262221,-500.0,0.00013972,2]
[395526313,1764700262231,-1296.64,0.00013972,2]
[395526316,1764700262242,-500.0,0.00013972,2]
[395526318,1764700262252,-500.0,0.00013972,2]
[395526320,1764700262263,-1302.34,0.00013972,2]
[395526321,1764700262273,-1347.62,0.00013972,2]
[395526323,1764700262283,-500.0,0.00013972,2]
[395526325,1764700262292,-500.0,0.00013972,2]
[395526327,1764700262301,-500.0,0.00013972,2]
[395526329,1764700262310,-741.45,0.00013972,2]
[395526331,1764700262319,-500.0,0.00013972,2]
[395526333,1764700262328,-703.29,0.00013972,2]
[395526335,1764700262338,-500.0,0.00013972,2]
[395526337,1764700262347,-500.0,0.00013972,2]
[395526339,1764700262356,-3107.02,0.00013972,2]
[395526341,1764700262365,-500.0,0.00013972,2]
[395526343,1764700262375,-3100.21,0.00013972,2]
[395526345,1764700262385,-500.0,0.00013972,2]
[395526347,1764700262394,-500.0,0.00013972,2]
[395526349,1764700262403,-819.83,0.00013972,2]
[395526351,1764700262413,-500.0,0.00013972,2]
[395526353,1764700262422,-500.0,0.00013972,2]
[395526355,1764700262431,-500.0,0.00013972,2]
[395526357,1764700262442,-500.0,0.00013972,2]
[395526359,1764700262451,-500.0,0.00013972,2]
[395526361,1764700262460,-502.87797624,0.00013972,2]
[395526363,1764700262470,-500.0,0.00013972,2]
[395526365,1764700262480,-500.0,0.00013972,2]
[395526367,1764700262489,-500.0,0.00013972,2]
[395526369,1764700262498,-500.0,0.00013972,2]
[395526371,1764700262507,-500.0,0.00013972,2]
[395526373,1764700262516,-1685.38,0.00013972,2]
[395526375,1764700262525,-758.24,0.00013972,2]
[395526377,1764700262534,-500.0,0.00013972,2]
[395526379,1764700262543,-502.52631466,0.00013972,2]
[395526381,1764700262552,-1302.06,0.00013972,2]
[395526383,1764700262561,-539.01,0.00013972,2]
[395526385,1764700262571,-500.0,0.00013972,2]
[395526387,1764700262580,-500.0,0.00013972,2]
[395526389,1764700262589,-514.70898997,0.00013972,2]
[395526391,1764700262598,-500.0,0.00013972,2]
[395526393,1764700262607,-978.33,0.00013972,2]
[395526395,1764700262617,-1527.03,0.00013972,2]
[395526397,1764700262626,-500.0,0.00013972,2]
[395526399,1764700262635,-5315.98,0.00013972,2]
[395526401,1764700262645,-500.0,0.00013972,2]
[395526403,1764700262654,-500.0,0.00013972,2]
[395526405,1764700262663,-1275.67,0.00013972,2]
[395526407,1764700262672,-1340.01,0.00013972,2]
[395526410,1764700262683,-500.0,0.00013972,2]
[395526412,1764700262694,-840.94,0.00013972,2]
[395526414,1764700262703,-482.20204276,0.00013972,2]
[395526416,1764700262716,-500.0,0.00013972,2]
[395526418,1764700262725,-500.0,0.00013972,2]
[395526420,1764700262734,-500.0,0.00013972,2]
[395526422,1764700262743,-1356.24,0.00013972,2]
[395526424,1764700262753,-500.0,0.00013972,2]
[395526426,1764700262762,-500.0,0.00013972,2]
[395526428,1764700262772,-510.72,0.00013972,2]
[395526430,1764700262781,-745.97,0.00013972,2]
[395526432,1764700262790,-500.0,0.00013972,2]
[395526434,1764700262800,-1054.46,0.00013972,2]
[395526436,1764700262809,-500.0,0.00013972,2]
[395526438,1764700262820,-500.0,0.00013972,2]
[395526440,1764700262829,-500.0,0.00013973,2]
[395526442,1764700262838,-245.0,0.00014109,2]
[395526444,1764700262847,-500.0,0.00014109,2]
[395526446,1764700262856,-198.51189988,0.00014109,2]
[395526448,1764700262866,-500.0,0.00014109,2]
[395526450,1764700262875,-198.0,0.00014109,2]
[395526452,1764700262884,-151.0,0.00014109,2]
[395526454,1764700262894,-151.0,0.00014109,2]
[395526456,1764700262903,-209.40437684,0.00014133,2]
[395526458,1764700262912,-500.0,0.00014246,2]
[395526460,1764700262922,-500.0,0.00014246,2]
[395526462,1764700262931,-151.0,0.00014246,2]
[395526464,1764700262942,-151.0,0.00014246,2]
[395526466,1764700262952,-2872.185808,0.00014246,2]
[395526468,1764700262962,-500.0,0.00014246,2]
[395526470,1764700262971,-500.0,0.00014246,2]
[395526472,1764700262981,-500.0,0.00014246,2]
[395526474,1764700262991,-500.0,0.00014246,2]
[395526476,1764700263000,-500.0,0.00014246,2]
[395526478,1764700263010,-500.0,0.00014246,2]
[395526480,1764700263019,-500.0,0.00014246,2]
[395526482,1764700263028,-503.75077816,0.00014246,2]
[395526484,1764700263039,-500.0,0.00014246,2]
[395526486,1764700263049,-289.75657423,0.00014246,2]
[395526488,1764700263061,-500.0,0.00014246,2]
[395526490,1764700263071,-500.0,0.00014246,2]
[395526492,1764700263082,-500.0,0.00014246,2]
[395526494,1764700263092,-500.0,0.00014246,2]
[395526496,1764700263101,-500.0,0.00014246,2]
[395526498,1764700263111,-500.0,0.00014246,2]
[395526501,1764700263123,-822.86,0.00014246,2]
[395526503,1764700263134,-690.16,0.00014246,2]
[395526504,1764700263143,-500.0,0.00014246,2]
[395526506,1764700263153,-500.0,0.00014246,2]
[395526508,1764700263162,-944.82,0.00014246,2]
[395526510,1764700263173,-500.0,0.00014246,2]
[395526512,1764700263183,-500.0,0.00014246,2]
[395526514,1764700263192,-500.0,0.00014246,2]
[395526516,1764700263204,-503.34290706,0.00014246,2]
[395526518,1764700263214,-528.90377695,0.00014246,2]
[395526520,1764700263223,-1072.55,0.00014246,2]
[395526522,1764700263233,-500.0,0.00014246,2]
[395526524,1764700263242,-505.14562838,0.00014246,2]
[395526526,1764700263251,-500.0,0.00014246,2]
[395526528,1764700263260,-500.0,0.00014246,2]
[395526530,1764700263269,-620.46768513,0.00014246,2]
[395526532,1764700263278,-500.0,0.00014246,2]
[395526534,1764700263288,-500.0,0.00014246,2]
[395526536,1764700263297,-599.59,0.00014246,2]
[395526538,1764700263307,-500.0,0.00014246,2]
[395526540,1764700263316,-500.0,0.00014246,2]
[395526542,1764700263326,-500.0,0.00014246,2]
[395526561,1764700263497,-500.0,0.00014246,2]
[395526563,1764700263507,-500.0,0.00014246,2]
[395526565,1764700263516,-500.0,0.00014246,2]
[395526567,1764700263525,-500.0,0.00014246,2]
[395526569,1764700263535,-500.0,0.00014246,2]
[395526572,1764700263545,-500.0,0.00014246,2]
[395526573,1764700263554,-500.0,0.00014246,2]
[395526575,1764700263563,-886.13,0.00014246,2]
[395526577,1764700263572,-623.2,0.00014246,2]
[395526579,1764700263581,-500.0,0.00014246,2]
[395526581,1764700263590,-500.0,0.00014246,2]
[395526583,1764700263599,-500.0,0.00014246,2]
[395526585,1764700263609,-911.67,0.00014246,2]
[395526587,1764700263618,-500.0,0.00014246,2]
[395526589,1764700263627,-500.0,0.00014246,2]
[395526591,1764700263636,-500.0,0.00014246,2]
[395526593,1764700263646,-500.0,0.00014246,2]
[395526595,1764700263655,-954.32,0.00014246,2]
[395526597,1764700263665,-500.0,0.00014246,2]
[395526599,1764700263675,-560.32173263,0.00014246,2]
[395526602,1764700263695,-500.0,0.00014246,2]
[395526603,1764700263708,-500.0,0.00014246,2]
[395526605,1764700263718,-500.0,0.00014246,2]
[395526607,1764700263728,-500.0,0.00014246,2]
[395526608,1764700263737,-500.0,0.00014246,2]
[395526610,1764700263747,-500.0,0.00014246,2]
[395526612,1764700263758,-500.0,0.00014246,2]
[395526613,1764700263767,-500.0,0.00014246,2]
[395526615,1764700263776,-500.0,0.00014246,2]
[395526617,1764700263786,-621.63,0.00014246,2]
[395526618,1764700263796,-500.0,0.00014246,2]
[395526620,1764700263807,-500.0,0.00014246,2]
[395526622,1764700263818,-500.0,0.00014246,2]
[395526624,1764700263829,-500.0,0.00014246,2]
[395526625,1764700263838,-500.0,0.00014246,2]
[395526627,1764700263848,-500.0,0.00014246,2]
[395526629,1764700263858,-1280.13,0.00014246,2]
[395526630,1764700263867,-524.35,0.00014246,2]
[395526632,1764700263878,-861.06,0.00014246,2]
[395526634,1764700263888,-500.0,0.00014246,2]
[395526635,1764700263898,-1138.79,0.00014246,2]
[395526637,1764700263907,-500.0,0.00014246,2]
[395526639,1764700263917,-500.0,0.00014246,2]
[395526640,1764700263928,-500.0,0.00014246,2]
[395526642,1764700263938,-503.08123413,0.00014246,2]
[395526644,1764700263949,-500.0,0.00014246,2]
[395526645,1764700263958,-500.0,0.00014246,2]
[395526647,1764700263968,-500.0,0.00014246,2]
[395526649,1764700263978,-500.0,0.00014246,2]
[395526650,1764700263987,-500.0,0.00014246,2]
[395526652,1764700263997,-1442.93,0.00014246,2]
[395526654,1764700264008,-516.70668451,0.00014246,2]